fUSD/lending_fUSD_20240303
["ID","MTS","AMOUNT","RATE_DAILY","PERIOD"]
[316287338,1709424009161,218.7020171,0.00018,2]
[316287339,1709424009183,150.0,0.00018,2]
[316287340,1709424009203,170.9597809,0.00018,2]
[316287341,1709424017087,163.92726795,0.00026,120]
[316287342,1709424031235,150.0,0.00024194,120]
[316287343,1709424079393,1.82618605,0.00017822,2]
[316287344,1709424079428,310.49381395,0.00017822,2]
[316287345,1709424090792,150.0,0.00026177,120]
[316287346,1709424115519,4093.745,0.0002303,30]
[316287347,1709424150722,150.0,0.00022331,120]
[316287348,1709424211105,150.0,0.0002541,120]
[316287349,1709424408147,-235.79289375,0.00018271,2]
[316287350,1709424477305,726.27215951,0.00018,2]
[316287351,1709424548722,318.97,0.00017661,2]
[316287354,1709424632258,-1393.83111155,0.00018271,2]
[316287355,1709424632270,-1885.914188,0.00018271,2]
[316287380,1709424633951,200.0,0.00017272,2]
[316287384,1709424638246,-3658.25038711,0.00018271,2]
[316287385,1709424638256,-172.78596695,0.0001867,2]
[316287386,1709424638264,-200.0,0.00018981,4]
[316287387,1709424638273,-154.8320171,0.00019,2]
[316287388,1709424638283,-427.16,0.00019583,2]
[316287389,1709424638292,-250.0,0.00019631,2]
[316287390,1709424638302,-431.82,0.00019644,2]
[316287391,1709424638311,-195.67,0.00019672,2]
[316287392,1709424638321,-166.29,0.0001972,2]
[316287393,1709424638330,-250.0,0.00019748,2]
[316287394,1709424638340,-572.84,0.00019757,2]
[316287395,1709424638349,-195.67,0.00019775,2]
[316287396,1709424638359,-439.34,0.00019879,2]
[316287397,1709424638368,-195.67,0.00019879,2]
[316287398,1709424638378,-318.97,0.00019925,2]
[316287399,1709424638387,-166.68265982,0.00019958,2]
[316287400,1709424638396,-195.67,0.00019982,2]
[316287401,1709424638406,-439.34,0.00019983,2]
[316287402,1709424638415,-900.89419003,0.0002,2]
[316287403,1709424638425,-3695.15730956,0.0002,2]
[316287404,1709424638434,-1947.41392338,0.0002,2]
[316287485,1709424639477,156.00765,0.00018088,2]
[316287616,1709424640761,-1168.19824651,0.0002,2]
[316287618,1709424640772,-3537.38783011,0.0002,2]
[316287620,1709424640783,-3103.92838412,0.0002,2]
[316287626,1709424640829,-1149.58098354,0.0002,2]
[316287628,1709424640841,-3310.71478847,0.0002,2]
[316287630,1709424640852,-150.1,0.0002,2]
[316287632,1709424640862,-150.1,0.0002,3]
[316287634,1709424640873,-206.77894799,0.0002,3]
[316287639,1709424640912,-10000.0,0.0002,3]
[316287701,1709424641496,-4793.22105201,0.0002,3]
[316287704,1709424641505,-166.68265982,0.00020008,2]
[316287706,1709424641514,-154.95146123,0.00020045,2]
[316287708,1709424641523,-195.67,0.00020086,2]
[316287709,1709424641533,-439.34,0.00020088,2]
[316287711,1709424641542,-159.13845588,0.000201,2]
[316287713,1709424641551,-161.60971474,0.00020113,2]
[316287715,1709424641561,-154.95146123,0.00020165,2]
[316287717,1709424641570,-195.67,0.0002019,2]
[316287720,1709424641580,-439.34,0.00020192,2]
[316287722,1709424641589,-154.95146123,0.00020263,2]
[316287723,1709424641599,-155.85608812,0.00020286,2]
[316287725,1709424641608,-195.67,0.00020293,2]
[316287728,1709424641617,-439.34,0.00020297,2]
[316287729,1709424641626,-185.0,0.00020305,2]
[316287731,1709424641634,-154.95146123,0.00020306,2]
[316287733,1709424641644,-378.0,0.00020375,2]
[316287735,1709424641653,-346.21,0.0002038,2]
[316287737,1709424641662,-195.67,0.00020397,2]
[316287740,1709424641672,-439.34,0.00020402,2]
[316287741,1709424641682,-161.60971474,0.00020412,2]
[316287744,1709424641691,-161.60971474,0.00020416,2]
[316287745,1709424641700,-195.67,0.000205,2]
[316287747,1709424641709,-439.34,0.00020506,2]
[316287749,1709424641718,-2000.0,0.00020548,2]
[316287752,1709424641727,-195.67,0.00020604,2]
[316287753,1709424641736,-439.34,0.00020611,2]
[316287755,1709424641745,-168.0,0.00020645,2]
[316287783,1709424642129,-200.0,0.0002069,6]
[316287785,1709424642140,-161.60971474,0.00020704,2]
[316287787,1709424642150,-195.67,0.00020707,2]
[316287789,1709424642158,-439.34,0.00020716,2]
[316287791,1709424642169,-195.67,0.00020811,2]
[316287793,1709424642179,-154.45792146,0.00020814,2]
[316287795,1709424642188,-439.34,0.0002082,2]
[316287797,1709424642197,-154.95146123,0.00020871,2]
[316287799,1709424642207,-195.67,0.00020914,2]
[316287801,1709424642216,-439.34,0.00020925,2]
[316287803,1709424642226,-153.44535668,0.00020937,2]
[316287805,1709424642235,-155.85608812,0.00020971,2]
[316287806,1709424642245,-162.88535493,0.00020981,2]
[316287808,1709424642254,-600.0,0.00021,22]
[316287810,1709424642263,-13653.09,0.00021,2]
[316287813,1709424642274,-195.67,0.00021018,2]
[316287815,1709424642284,-439.34,0.00021029,2]
[316287817,1709424642294,-169.0,0.0002106,2]
[316287819,1709424642303,-277.26,0.00021096,2]
[316287821,1709424642312,-195.67,0.00021121,2]
[316287823,1709424642322,-439.34,0.00021134,2]
[316287825,1709424642331,-195.67,0.00021225,2]
[316287827,1709424642341,-439.34,0.00021239,2]
[316287828,1709424642350,-195.67,0.00021328,2]
[316287831,1709424642359,-168.0,0.0002133,2]
[316287833,1709424642369,-439.34,0.00021343,2]
[316287835,1709424642378,-208.84529429,0.00021359,2]
[316287837,1709424642387,-4159.32,0.00021367,2]
[316287839,1709424642398,-628.56432977,0.00021368,2]
[316287841,1709424642407,-306.71788486,0.00021368,2]
[316287843,1709424642417,-500.0,0.00021369,2]
[316287845,1709424642427,-500.0,0.00021369,2]
[316287847,1709424642437,-444.70387187,0.00021369,2]
[316287849,1709424642446,-500.0,0.00021369,2]
[316287851,1709424642455,-500.0,0.00021369,2]
[316287853,1709424642465,-500.0,0.00021369,2]
[316287855,1709424642473,-500.0,0.00021369,2]
[316287857,1709424642483,-500.0,0.00021369,2]
[316287859,1709424642492,-500.0,0.00021369,2]
[316287861,1709424642501,-500.0,0.00021369,2]
[316287863,1709424642511,-500.0,0.00021369,2]
[316287865,1709424642520,-500.0,0.00021369,2]
[316287867,1709424642530,-500.0,0.00021369,2]
[316287869,1709424642539,-418.03460234,0.00021369,2]
[316287871,1709424642548,-500.0,0.00021369,2]
[316287873,1709424642558,-500.0,0.00021369,2]
[316287875,1709424642567,-500.0,0.00021369,2]
[316287877,1709424642575,-500.0,0.00021369,2]
[316287879,1709424642584,-500.0,0.00021369,2]
[316287881,1709424642594,-500.0,0.00021369,2]
[316287883,1709424642603,-500.0,0.00021369,2]
[316287885,1709424642612,-500.0,0.00021369,2]
[316287887,1709424642621,-500.0,0.00021369,2]
[316287889,1709424642630,-500.0,0.00021369,2]
[316287891,1709424642639,-500.0,0.00021369,2]
[316287893,1709424642648,-500.0,0.00021369,2]
[316287895,1709424642658,-500.0,0.00021369,2]
[316287897,1709424642669,-500.0,0.00021369,2]
[316287899,1709424642678,-500.0,0.00021369,2]
[316287901,1709424642687,-500.0,0.00021369,2]
[316287903,1709424642697,-500.0,0.00021369,2]
[316287905,1709424642706,-500.0,0.00021369,2]
[316287907,1709424642716,-500.0,0.00021369,2]
[316287909,1709424642725,-500.0,0.00021369,2]
[316287911,1709424642734,-314.84501811,0.00021369,2]
[316287913,1709424642744,-500.0,0.00021369,2]
[316287915,1709424642754,-500.0,0.00021369,2]
[316287917,1709424642767,-500.0,0.00021369,2]
[316287919,1709424642777,-306.60995107,0.00021369,2]
[316287921,1709424642786,-500.0,0.00021369,2]
[316287923,1709424642796,-500.0,0.00021369,2]
[316287925,1709424642807,-500.0,0.00021369,2]
[316287927,1709424642817,-500.0,0.00021369,2]
[316287929,1709424642827,-500.0,0.00021369,2]
[316287931,1709424642837,-500.0,0.00021369,2]
[316287934,1709424642847,-500.0,0.00021369,2]
[316287936,1709424642858,-500.0,0.00021369,2]
[316287938,1709424642870,-500.0,0.00021369,2]
[316287940,1709424642880,-500.0,0.00021369,2]
[316287942,1709424642889,-500.0,0.00021369,2]
[316287944,1709424642899,-500.0,0.00021369,2]
[316287946,1709424642909,-500.0,0.00021369,2]
[316287948,1709424642920,-500.0,0.00021369,2]
[316287950,1709424642930,-714.99,0.00021369,2]
[316287952,1709424642940,-500.0,0.00021369,2]
[316287954,1709424642949,-523.78,0.00021369,2]
[316287956,1709424642959,-500.0,0.00021369,2]
[316287958,1709424642969,-836.54,0.00021369,2]
[316287960,1709424642979,-500.0,0.00021369,2]
[316287962,1709424642991,-500.0,0.00021369,2]
[316287964,1709424643001,-500.0,0.00021369,2]
[316287966,1709424643012,-500.0,0.00021369,2]
[316287968,1709424643022,-500.0,0.00021369,2]
[316287970,1709424643031,-500.0,0.00021369,2]
[316287972,1709424643041,-500.0,0.00021369,2]
[316287974,1709424643050,-500.0,0.00021369,2]
[316287976,1709424643060,-500.0,0.00021369,2]
[316287978,1709424643069,-500.0,0.00021369,2]
[316287981,1709424643079,-500.0,0.00021369,2]
[316287984,1709424643088,-500.0,0.00021369,2]
[316287987,1709424643098,-500.0,0.00021369,2]
[316287990,1709424643107,-500.0,0.00021369,2]
[316287994,1709424643117,-500.0,0.00021369,2]
[316287998,1709424643126,-500.0,0.00021369,2]
[316288002,1709424643135,-500.0,0.00021369,2]
[316288006,1709424643144,-500.0,0.00021369,2]
[316288009,1709424643154,-500.0,0.00021369,2]
[316288011,1709424643164,-500.0,0.00021369,2]
[316288013,1709424643177,-500.0,0.00021369,2]
[316288016,1709424643187,-500.0,0.00021369,2]
[316288018,1709424643197,-523.92,0.00021369,2]
[316288020,1709424643207,-500.0,0.00021369,2]
[316288022,1709424643217,-500.0,0.00021369,2]
[316288024,1709424643226,-500.0,0.00021369,2]
[316288027,1709424643246,-500.0,0.00021369,2]
[316288029,1709424643257,-543.5,0.00021369,2]
[316288031,1709424643267,-500.0,0.00021369,2]
[316288033,1709424643276,-500.0,0.00021369,2]
[316288035,1709424643286,-553.9616673,0.00021369,2]
[316288038,1709424643296,-574.4,0.00021369,2]
[316288040,1709424643306,-500.0,0.00021369,2]
[316288042,1709424643316,-500.0,0.00021369,2]
[316288044,1709424643326,-500.0,0.00021369,2]
[316288046,1709424643335,-500.0,0.00021369,2]
[316288048,1709424643345,-500.0,0.00021369,2]
[316288050,1709424643355,-628.88,0.00021369,2]
[316288052,1709424643365,-500.0,0.00021369,2]
[316288054,1709424643375,-500.0,0.00021369,2]
[316288057,1709424643385,-500.0,0.00021369,2]
[316288059,1709424643395,-500.0,0.00021369,2]
[316288061,1709424643405,-500.0,0.00021369,2]
[316288063,1709424643415,-500.0,0.00021369,2]
[316288065,1709424643426,-500.0,0.00021369,2]
[316288067,1709424643436,-500.0,0.00021369,2]
[316288069,1709424643445,-500.0,0.00021369,2]
[316288071,1709424643456,-500.0,0.00021369,2]
[316288073,1709424643465,-500.0,0.00021369,2]
[316288075,1709424643475,-500.0,0.00021369,2]
[316288077,1709424643485,-500.0,0.00021369,2]
[316288079,1709424643494,-500.0,0.00021369,2]
[316288081,1709424643504,-378.98343776,0.00021369,2]
[316288083,1709424643513,-500.0,0.00021369,2]
[316288085,1709424643523,-500.0,0.00021369,2]
[316288087,1709424643532,-500.0,0.00021369,2]
[316288089,1709424643542,-500.0,0.00021369,2]
[316288091,1709424643552,-500.0,0.00021369,2]
[316288094,1709424643561,-500.0,0.00021369,2]
[316288096,1709424643571,-500.0,0.00021369,2]
[316288098,1709424643580,-500.0,0.00021369,2]
[316288100,1709424643590,-500.0,0.00021369,2]
[316288102,1709424643600,-500.0,0.00021369,2]
[316288104,1709424643610,-500.0,0.00021369,2]
[316288106,1709424643619,-500.0,0.00021369,2]
[316288108,1709424643629,-500.0,0.00021369,2]
[316288110,1709424643638,-424.60396628,0.00021369,2]
[316288112,1709424643648,-582.28,0.00021369,2]
[316288114,1709424643658,-500.0,0.00021369,2]
[316288117,1709424643674,-500.0,0.00021369,2]
[316288119,1709424643685,-500.0,0.00021369,2]
[316288121,1709424643694,-500.0,0.00021369,2]
[316288123,1709424643704,-500.0,0.00021369,2]
[316288126,1709424643714,-500.0,0.00021369,2]
[316288128,1709424643724,-500.0,0.00021369,2]
[316288130,1709424643734,-500.0,0.00021369,2]
[316288132,1709424643744,-500.0,0.00021369,2]
[316288134,1709424643754,-500.0,0.00021369,2]
[316288136,1709424643766,-500.0,0.00021369,2]
[316288138,1709424643775,-531.63541725,0.00021369,2]
[316288140,1709424643786,-500.0,0.00021369,2]
[316288143,1709424643799,-500.0,0.00021369,2]
[316288145,1709424643810,-500.0,0.00021369,2]
[316288147,1709424643819,-500.0,0.00021369,2]
[316288149,1709424643830,-500.0,0.00021369,2]
[316288151,1709424643840,-500.0,0.00021369,2]
[316288153,1709424643849,-500.0,0.00021369,2]
[316288155,1709424643860,-500.0,0.00021369,2]
[316288157,1709424643871,-500.0,0.00021369,2]
[316288159,1709424643881,-500.0,0.00021369,2]
[316288162,1709424643891,-500.0,0.00021369,2]
[316288164,1709424643901,-534.2012928,0.00021369,2]
[316288166,1709424643911,-500.0,0.00021369,2]
[316288168,1709424643923,-500.0,0.00021369,2]
[316288170,1709424643933,-500.0,0.00021369,2]
[316288172,1709424643942,-500.0,0.00021369,2]
[316288174,1709424643952,-516.23,0.00021369,2]
[316288176,1709424643963,-500.0,0.00021369,2]
[316288178,1709424643973,-500.0,0.00021369,2]
[316288180,1709424643983,-680.43,0.00021369,2]
[316288182,1709424643993,-701.53,0.00021369,2]
[316288184,1709424644003,-500.0,0.00021369,2]
[316288186,1709424644013,-500.0,0.00021369,2]
[316288188,1709424644022,-500.0,0.00021369,2]
[316288190,1709424644032,-341.00107798,0.00021369,2]
[316288192,1709424644041,-500.0,0.00021369,2]
[316288194,1709424644051,-511.98,0.00021369,2]
[316288196,1709424644061,-500.0,0.00021369,2]
[316288198,1709424644071,-500.0,0.00021369,2]
[316288200,1709424644081,-500.0,0.00021369,2]
[316288202,1709424644091,-500.0,0.00021369,2]
[316288204,1709424644101,-500.0,0.00021369,2]
[316288207,1709424644116,-500.0,0.00021369,2]
[316288209,1709424644126,-692.28,0.00021369,2]
[316288211,1709424644136,-500.0,0.00021369,2]
[316288213,1709424644147,-500.0,0.00021369,2]
[316288216,1709424644157,-554.21,0.00021369,2]
[316288218,1709424644168,-620.58,0.00021369,2]
[316288220,1709424644182,-500.0,0.00021369,2]
[316288222,1709424644191,-575.67,0.00021369,2]
[316288224,1709424644201,-500.0,0.00021369,2]
[316288226,1709424644212,-167.05,0.00021369,2]
[316288228,1709424644222,-500.0,0.00021369,2]
[316288230,1709424644232,-500.0,0.00021369,2]
[316288232,1709424644243,-500.0,0.00021369,2]
[316288233,1709424644253,-500.0,0.00021369,2]
[316288234,1709424644264,-669.47,0.00021369,2]
[316288235,1709424644274,-500.0,0.00021369,2]
[316288236,1709424644284,-500.0,0.00021369,2]
[316288237,1709424644294,-500.0,0.00021369,2]
[316288238,1709424644303,-500.0,0.00021369,2]
[316288239,1709424644313,-500.0,0.00021369,2]
[316288240,1709424644323,-500.0,0.00021369,2]
[316288242,1709424644334,-500.0,0.00021369,2]
[316288244,1709424644343,-500.0,0.00021369,2]
[316288246,1709424644353,-500.0,0.00021369,2]
[316288248,1709424644364,-500.0,0.00021369,2]
[316288250,1709424644374,-500.0,0.00021369,2]
[316288252,1709424644384,-500.0,0.00021369,2]
[316288254,1709424644394,-758.32,0.00021369,2]
[316288256,1709424644404,-500.0,0.00021369,2]
[316288259,1709424644413,-898.66,0.00021369,2]
[316288261,1709424644424,-500.0,0.00021369,2]
[316288263,1709424644434,-762.81,0.00021369,2]
[316288265,1709424644444,-335.3510533,0.00021369,2]
[316288267,1709424644454,-500.0,0.00021369,2]
[316288269,1709424644465,-500.0,0.00021369,2]
[316288271,1709424644474,-500.0,0.00021369,2]
[316288273,1709424644484,-586.31,0.00021369,2]
[316288275,1709424644494,-500.0,0.00021369,2]
[316288277,1709424644504,-500.0,0.00021369,2]
[316288280,1709424644514,-500.0,0.00021369,2]
[316288282,1709424644523,-693.95,0.00021369,2]
[316288284,1709424644533,-500.0,0.00021369,2]
[316288286,1709424644542,-500.0,0.00021369,2]
[316288288,1709424644556,-538.1,0.00021369,2]
[316288290,1709424644566,-500.0,0.00021369,2]
[316288292,1709424644576,-500.0,0.00021369,2]
[316288304,1709424644773,-500.0,0.00021369,2]
[316288305,1709424644783,-500.0,0.00021369,2]
[316288306,1709424644792,-500.0,0.00021369,2]
[316288307,1709424644803,-500.0,0.00021369,2]
[316288308,1709424644812,-500.0,0.00021369,2]
[316288309,1709424644822,-500.0,0.00021369,2]
[316288310,1709424644831,-733.64,0.00021369,2]
[316288311,1709424644840,-500.0,0.00021369,2]
[316288312,1709424644849,-500.0,0.00021369,2]
[316288313,1709424644858,-500.0,0.00021369,2]
[316288314,1709424644867,-500.0,0.00021369,2]
[316288315,1709424644877,-500.0,0.00021369,2]
[316288316,1709424644886,-500.0,0.00021369,2]
[316288317,1709424644895,-500.0,0.00021369,2]
[316288318,1709424644904,-500.0,0.00021369,2]
[316288319,1709424644914,-500.0,0.00021369,2]
[316288320,1709424644925,-500.0,0.00021369,2]
[316288321,1709424644934,-500.0,0.00021369,2]
[316288322,1709424644943,-500.0,0.00021369,2]
[316288323,1709424644953,-500.0,0.00021369,2]
[316288324,1709424644963,-675.61,0.00021369,2]
[316288325,1709424644972,-500.0,0.00021369,2]
[316288326,1709424644981,-500.0,0.00021369,2]
[316288327,1709424644991,-500.0,0.00021369,2]
[316288328,1709424645000,-500.0,0.00021369,2]
[316288329,1709424645009,-500.0,0.00021369,2]
[316288330,1709424645018,-500.0,0.00021369,2]
[316288331,1709424645027,-500.0,0.00021369,2]
[316288332,1709424645037,-500.0,0.00021369,2]
[316288333,1709424645046,-500.0,0.00021369,2]
[316288334,1709424645055,-660.29,0.00021369,2]
[316288335,1709424645064,-500.0,0.00021369,2]
[316288336,1709424645073,-500.0,0.00021369,2]
[316288337,1709424645082,-500.0,0.00021369,2]
[316288338,1709424645091,-500.0,0.00021369,2]
[316288339,1709424645101,-500.0,0.00021369,2]
[316288340,1709424645110,-500.0,0.00021369,2]
[316288341,1709424645119,-500.0,0.00021369,2]
[316288342,1709424645128,-500.0,0.00021369,2]
[316288343,1709424645138,-241.09538493,0.00021369,2]
[316288344,1709424645147,-500.0,0.00021369,2]
[316288345,1709424645156,-500.0,0.00021369,2]
[316288346,1709424645166,-500.0,0.00021369,2]
[316288347,1709424645176,-500.0,0.00021369,2]
[316288348,1709424645186,-500.0,0.00021369,2]
[316288349,1709424645195,-500.0,0.00021369,2]
[316288350,1709424645205,-500.0,0.00021369,2]
[316288351,1709424645214,-500.0,0.00021369,2]
[316288352,1709424645223,-640.48,0.00021369,2]
[316288353,1709424645232,-500.0,0.00021369,2]
[316288354,1709424645241,-500.0,0.00021369,2]
[316288355,1709424645251,-531.94,0.00021369,2]
[316288356,1709424645260,-500.0,0.00021369,2]
[316288357,1709424645269,-500.0,0.00021369,2]
[316288358,1709424645278,-500.0,0.00021369,2]
[316288359,1709424645288,-500.0,0.00021369,2]
[316288360,1709424645297,-635.89,0.00021369,2]
[316288361,1709424645314,-500.0,0.00021369,2]
[316288362,1709424645327,-500.0,0.00021369,2]
[316288363,1709424645336,-500.0,0.00021369,2]
[316288364,1709424645345,-500.0,0.00021369,2]
[316288365,1709424645355,-638.38327822,0.00021369,2]
[316288366,1709424645365,-500.0,0.00021369,2]
[316288367,1709424645374,-500.0,0.00021369,2]
[316288368,1709424645383,-500.0,0.00021369,2]
[316288369,1709424645393,-566.59,0.00021369,2]
[316288370,1709424645402,-500.0,0.00021369,2]
[316288371,1709424645411,-500.0,0.00021369,2]
[316288372,1709424645422,-500.0,0.00021369,2]
[316288373,1709424645432,-500.0,0.00021369,2]
[316288374,1709424645441,-500.0,0.00021369,2]
[316288375,1709424645450,-747.4,0.00021369,2]
[316288376,1709424645461,-500.0,0.00021369,2]
[316288377,1709424645470,-500.0,0.00021369,2]
[316288378,1709424645480,-747.48,0.00021369,2]
[316288379,1709424645490,-500.0,0.00021369,2]
[316288380,1709424645500,-534.85,0.00021369,2]
[316288381,1709424645509,-599.49,0.00021369,2]
[316288382,1709424645519,-500.0,0.00021369,2]
[316288383,1709424645529,-500.0,0.00021369,2]
[316288384,1709424645538,-320.39188448,0.00021369,2]
[316288385,1709424645547,-500.0,0.00021369,2]
[316288386,1709424645556,-500.0,0.00021369,2]
[316288387,1709424645566,-500.0,0.00021369,2]
[316288388,1709424645575,-500.0,0.00021369,2]
[316288389,1709424645585,-500.0,0.00021369,2]
[316288390,1709424645594,-156.34196741,0.00021369,2]
[316288391,1709424645603,-500.0,0.00021369,2]
[316288392,1709424645612,-500.0,0.00021369,2]
[316288393,1709424645621,-702.78,0.00021369,2]
[316288394,1709424645631,-520.15,0.00021369,2]
[316288395,1709424645640,-500.0,0.00021369,2]
[316288396,1709424645649,-500.0,0.00021369,2]
[316288397,1709424645659,-500.0,0.00021369,2]
[316288398,1709424645668,-500.0,0.00021369,2]
[316288399,1709424645679,-544.59,0.00021369,2]
[316288400,1709424645688,-500.0,0.00021369,2]
[316288401,1709424645698,-500.0,0.00021369,2]
[316288402,1709424645707,-591.47,0.00021369,2]
[316288403,1709424645716,-500.0,0.00021369,2]
[316288404,1709424645725,-500.0,0.00021369,2]
[316288405,1709424645734,-500.0,0.00021369,2]
[316288406,1709424645743,-562.14,0.00021369,2]
[316288407,1709424645752,-500.0,0.00021369,2]
[316288408,1709424645762,-521.57,0.00021369,2]
[316288409,1709424645773,-500.0,0.00021369,2]
[316288410,1709424645785,-649.9,0.00021369,2]
[316288411,1709424645794,-707.89,0.00021369,2]
[316288412,1709424645804,-500.0,0.00021369,2]
[316288413,1709424645814,-500.0,0.00021369,2]
[316288414,1709424645823,-731.26,0.00021369,2]
[316288415,1709424645833,-500.0,0.00021369,2]
[316288416,1709424645842,-500.0,0.00021369,2]
[316288417,1709424645852,-500.0,0.00021369,2]
[316288418,1709424645862,-500.0,0.00021369,2]
[316288419,1709424645871,-774.62,0.00021369,2]
[316288420,1709424645880,-500.0,0.00021369,2]
[316288421,1709424645889,-500.0,0.00021369,2]
[316288422,1709424645899,-500.0,0.00021369,2]
[316288423,1709424645908,-500.0,0.00021369,2]
[316288424,1709424645917,-500.0,0.00021369,2]
[316288425,1709424645929,-500.0,0.00021369,2]
[316288426,1709424645938,-500.0,0.00021369,2]
[316288427,1709424645947,-500.0,0.00021369,2]
[316288428,1709424645957,-500.0,0.00021369,2]
[316288429,1709424645967,-500.0,0.00021369,2]
[316288430,1709424645977,-707.07,0.00021369,2]
[316288431,1709424645986,-500.0,0.00021369,2]
[316288432,1709424645995,-500.0,0.00021369,2]
[316288433,1709424646004,-500.0,0.00021369,2]
[316288434,1709424646014,-500.0,0.00021369,2]
[316288435,1709424646022,-500.0,0.00021369,2]
[316288436,1709424646031,-817.55,0.00021369,2]
[316288437,1709424646040,-500.0,0.00021369,2]
[316288438,1709424646049,-500.0,0.00021369,2]
[316288439,1709424646059,-578.43,0.00021369,2]
[316288440,1709424646068,-500.0,0.00021369,2]
[316288441,1709424646077,-500.0,0.00021369,2]
[316288442,1709424646087,-539.00287637,0.00021369,2]
[316288443,1709424646098,-835.51,0.00021369,2]
[316288444,1709424646107,-500.0,0.00021369,2]
[316288445,1709424646116,-500.0,0.00021369,2]
[316288446,1709424646126,-808.21,0.00021369,2]
[316288447,1709424646135,-500.0,0.00021369,2]
[316288448,1709424646145,-500.0,0.00021369,2]
[316288449,1709424646155,-500.0,0.00021369,2]
[316288450,1709424646164,-500.0,0.00021369,2]
[316288451,1709424646175,-500.0,0.00021369,2]
[316288452,1709424646185,-1063.6,0.00021369,2]
[316288453,1709424646195,-500.0,0.00021369,2]
[316288454,1709424646204,-500.0,0.00021369,2]
[316288455,1709424646216,-500.0,0.00021369,2]
[316288456,1709424646225,-500.0,0.00021369,2]
[316288457,1709424646235,-500.0,0.00021369,2]
[316288458,1709424646244,-500.0,0.00021369,2]
[316288459,1709424646254,-500.0,0.00021369,2]
[316288460,1709424646263,-722.72,0.00021369,2]
[316288461,1709424646273,-500.0,0.00021369,2]
[316288462,1709424646282,-500.0,0.00021369,2]
[316288463,1709424646290,-500.0,0.00021369,2]
[316288464,1709424646300,-695.57,0.00021369,2]
[316288465,1709424646309,-734.0,0.00021369,2]
[316288466,1709424646319,-500.0,0.00021369,2]
[316288467,1709424646328,-500.0,0.00021369,2]
[316288468,1709424646337,-942.96,0.00021369,2]
[316288469,1709424646347,-514.04,0.00021369,2]
[316288470,1709424646356,-564.37,0.00021369,2]
[316288471,1709424646365,-500.0,0.00021369,2]
[316288472,1709424646375,-1298.52,0.00021369,2]
[316288473,1709424646384,-500.0,0.00021369,2]
[316288474,1709424646394,-500.0,0.00021369,2]
[316288475,1709424646403,-500.0,0.00021369,2]
[316288476,1709424646412,-1123.15,0.00021369,2]
[316288477,1709424646422,-804.8,0.00021369,2]
[316288478,1709424646431,-500.0,0.00021369,2]
[316288479,1709424646440,-500.0,0.00021369,2]
[316288480,1709424646449,-500.0,0.00021369,2]
[316288481,1709424646458,-500.0,0.00021369,2]